[Event "Titled Tuesday Blitz April 4 Early 2023"]
[White "Mendez Fortes, Eduardo Jesus"]
[Black "Maxfan2008"]
[WhiteFideId "3502376"]
[WhiteElo "2307"]
[BlackElo "2437"]
[Result "0-1"]
[Round "10"]
[TimeControl "180+2"]
[Date "2023.04.04"]
[WhiteClock "0:00:17"]
[BlackClock "0:00:45"]

1. e4 {[%clk 0:02:56]}  c5 {[%clk 0:02:59]} 2. Nf3 {[%clk 0:02:55]}  d6 {[%clk 0:03:00]} 3. d4 {[%clk 0:02:54]}  cxd4 {[%clk 0:03:01]} 4. Nxd4 {[%clk 0:02:54]}  Nf6 {[%clk 0:03:02]} 5. Nc3 {[%clk 0:02:55]}  a6 {[%clk 0:03:02]} 6. Bg5 {[%clk 0:02:55]}  e6 {[%clk 0:03:03]} 7. f4 {[%clk 0:02:55]}  Qb6 {[%clk 0:03:03]} 8. Qd3 {[%clk 0:02:55]}  Nbd7 {[%clk 0:03:02]} 9. O-O-O {[%clk 0:02:51]}  Be7 {[%clk 0:03:00]} 10. Be2 {[%clk 0:02:48]}  h6 {[%clk 0:02:59]} 11. Bh4 {[%clk 0:02:47]}  Nc5 {[%clk 0:02:41]} 12. Qf3 {[%clk 0:02:35]}  Nfxe4 {[%clk 0:02:18]} 13. Nxe4 {[%clk 0:02:34]}  Bxh4 {[%clk 0:02:17]} 14. Nxd6+ {[%clk 0:01:40]}  Qxd6 {[%clk 0:02:13]} 15. Nf5 {[%clk 0:01:38]}  Qxd1+ {[%clk 0:01:44]} 16. Rxd1 {[%clk 0:01:39]}  exf5 {[%clk 0:01:44]} 17. Qd5 {[%clk 0:01:27]}  Be7 {[%clk 0:01:37]} 18. Qe5 {[%clk 0:01:25]}  Ne6 {[%clk 0:01:23]} 19. Kb1 {[%clk 0:01:20]}  O-O {[%clk 0:01:18]} 20. Qxf5 {[%clk 0:01:15]}  Bf6 {[%clk 0:01:13]} 21. Qe4 {[%clk 0:01:09]}  Nc5 {[%clk 0:01:08]} 22. Qc4 {[%clk 0:01:02]}  b6 {[%clk 0:01:07]} 23. Bf3 {[%clk 0:01:03]}  Be6 {[%clk 0:01:07]} 24. Qf1 {[%clk 0:00:56]}  Rac8 {[%clk 0:01:04]} 25. g4 {[%clk 0:00:45]}  Na4 {[%clk 0:01:00]} 26. c3 {[%clk 0:00:44]}  b5 {[%clk 0:00:55]} 27. Bb7 {[%clk 0:00:38]}  Rb8 {[%clk 0:00:54]} 28. Bxa6 {[%clk 0:00:38]}  Bxg4 {[%clk 0:00:54]} 29. Rc1 {[%clk 0:00:34]}  Bf5+ {[%clk 0:00:51]} 30. Ka1 {[%clk 0:00:33]}  b4 {[%clk 0:00:51]} 31. Bb5 {[%clk 0:00:18]}  bxc3 {[%clk 0:00:46]} 32. bxc3 {[%clk 0:00:17]}  Nxc3 {[%clk 0:00:45]} 0-1


[Site "https://www.chess.com"]

[Event "Titled Tuesday Blitz April 4 Early 2023"]
[White "ArtemDyachuk"]
[Black "Nikologorskiy, Konstantin"]
[BlackFideId "24111708"]
[WhiteElo "2434"]
[BlackElo "2293"]
[Result "0-1"]
[Round "10"]
[TimeControl "180+2"]
[Date "2023.04.04"]
[WhiteClock "0:00:35"]
[BlackClock "0:01:21"]

1. Nf3 {[%clk 0:03:00]}  d5 {[%clk 0:02:58]} 2. e3 {[%clk 0:02:59]}  Nf6 {[%clk 0:02:58]} 3. c4 {[%clk 0:02:59]}  e6 {[%clk 0:02:58]} 4. b3 {[%clk 0:02:54]}  Be7 {[%clk 0:02:58]} 5. Bb2 {[%clk 0:02:53]}  O-O {[%clk 0:02:58]} 6. Nc3 {[%clk 0:02:51]}  b6 {[%clk 0:02:58]} 7. Qc2 {[%clk 0:02:48]}  Bb7 {[%clk 0:02:58]} 8. Be2 {[%clk 0:02:45]}  Nbd7 {[%clk 0:02:59]} 9. h4 {[%clk 0:02:41]}  c5 {[%clk 0:02:52]} 10. cxd5 {[%clk 0:02:21]}  exd5 {[%clk 0:02:53]} 11. Ng5 {[%clk 0:02:20]}  d4 {[%clk 0:02:46]} 12. Nce4 {[%clk 0:02:08]}  Nxe4 {[%clk 0:02:40]} 13. Nxe4 {[%clk 0:02:06]}  f5 {[%clk 0:02:21]} 14. Ng3 {[%clk 0:01:46]}  f4 {[%clk 0:02:13]} 15. Nh5 {[%clk 0:01:36]}  fxe3 {[%clk 0:02:05]} 16. dxe3 {[%clk 0:01:33]}  g6 {[%clk 0:01:55]} 17. Bc4+ {[%clk 0:01:25]}  Kh8 {[%clk 0:01:52]} 18. Nf4 {[%clk 0:01:20]}  Rxf4 {[%clk 0:01:52]} 19. exf4 {[%clk 0:01:20]}  Bxg2 {[%clk 0:01:42]} 20. Rg1 {[%clk 0:01:18]}  Bf3 {[%clk 0:01:39]} 21. f5 {[%clk 0:01:15]}  Ne5 {[%clk 0:01:37]} 22. fxg6 {[%clk 0:01:12]}  Nxg6 {[%clk 0:01:30]} 23. Rxg6 {[%clk 0:00:34]}  hxg6 {[%clk 0:01:25]} 24. Qxg6 {[%clk 0:00:35]}  Qf8 {[%clk 0:01:21]} 0-1


[Site "https://www.chess.com"]

[Event "Titled Tuesday Blitz April 4 Early 2023"]
[White "Horak, Martin"]
[Black "Leebit02"]
[WhiteFideId "367095"]
[WhiteElo "2091"]
[BlackElo "2434"]
[Result "1/2-1/2"]
[Round "10"]
[TimeControl "180+2"]
[Date "2023.04.04"]
[WhiteClock "0:00:04"]
[BlackClock "0:00:09"]

1. d4 {[%clk 0:03:00]}  Nf6 {[%clk 0:02:56]} 2. Nf3 {[%clk 0:02:58]}  g6 {[%clk 0:02:55]} 3. c4 {[%clk 0:02:56]}  Bg7 {[%clk 0:02:55]} 4. e3 {[%clk 0:02:56]}  O-O {[%clk 0:02:54]} 5. Be2 {[%clk 0:02:57]}  d6 {[%clk 0:02:52]} 6. Nc3 {[%clk 0:02:56]}  Nbd7 {[%clk 0:02:41]} 7. Qc2 {[%clk 0:02:54]}  e5 {[%clk 0:02:40]} 8. O-O {[%clk 0:02:54]}  c6 {[%clk 0:02:38]} 9. dxe5 {[%clk 0:02:44]}  dxe5 {[%clk 0:02:37]} 10. Rd1 {[%clk 0:02:44]}  Qe7 {[%clk 0:02:34]} 11. b3 {[%clk 0:02:39]}  Re8 {[%clk 0:02:33]} 12. Bb2 {[%clk 0:02:39]}  a5 {[%clk 0:02:29]} 13. a3 {[%clk 0:02:28]}  Nc5 {[%clk 0:02:29]} 14. Nd2 {[%clk 0:02:16]}  Bf5 {[%clk 0:02:17]} 15. e4 {[%clk 0:02:16]}  Bc8 {[%clk 0:02:11]} 16. b4 {[%clk 0:02:02]}  Ne6 {[%clk 0:02:09]} 17. c5 {[%clk 0:01:59]}  Nd4 {[%clk 0:02:08]} 18. Qd3 {[%clk 0:01:33]}  b6 {[%clk 0:01:42]} 19. Rac1 {[%clk 0:01:12]}  axb4 {[%clk 0:01:34]} 20. axb4 {[%clk 0:01:11]}  bxc5 {[%clk 0:01:30]} 21. bxc5 {[%clk 0:01:11]}  Ba6 {[%clk 0:01:22]} 22. Qe3 {[%clk 0:01:10]}  Qxc5 {[%clk 0:01:16]} 23. Bxa6 {[%clk 0:01:04]}  Rxa6 {[%clk 0:01:16]} 24. Nd5 {[%clk 0:00:57]}  Qa7 {[%clk 0:01:08]} 25. Nxf6+ {[%clk 0:00:45]}  Bxf6 {[%clk 0:01:08]} 26. Nf3 {[%clk 0:00:37]}  c5 {[%clk 0:01:03]} 27. Rc4 {[%clk 0:00:24]}  Ra2 {[%clk 0:01:00]} 28. Bxd4 {[%clk 0:00:20]}  exd4 {[%clk 0:00:58]} 29. Qd3 {[%clk 0:00:21]}  Ra1 {[%clk 0:00:49]} 30. g3 {[%clk 0:00:18]}  Rxd1+ {[%clk 0:00:49]} 31. Qxd1 {[%clk 0:00:18]}  Rxe4 {[%clk 0:00:49]} 32. Qc2 {[%clk 0:00:17]}  Re8 {[%clk 0:00:27]} 33. Rxc5 {[%clk 0:00:17]}  d3 {[%clk 0:00:24]} 34. Qc4 {[%clk 0:00:12]}  Qa1+ {[%clk 0:00:18]} 35. Kg2 {[%clk 0:00:12]}  Rd8 {[%clk 0:00:14]} 36. Rc7 {[%clk 0:00:11]}  Rf8 {[%clk 0:00:11]} 37. Qxd3 {[%clk 0:00:11]}  Qa8 {[%clk 0:00:12]} 38. Rd7 {[%clk 0:00:09]}  Qe8 {[%clk 0:00:11]} 39. Qd5 {[%clk 0:00:09]}  Qe6 {[%clk 0:00:11]} 40. Qxe6 {[%clk 0:00:09]}  fxe6 {[%clk 0:00:11]} 41. h4 {[%clk 0:00:09]}  Rf7 {[%clk 0:00:11]} 42. Rxf7 {[%clk 0:00:08]}  Kxf7 {[%clk 0:00:11]} 43. Kh3 {[%clk 0:00:06]}  e5 {[%clk 0:00:11]} 44. g4 {[%clk 0:00:06]}  Ke6 {[%clk 0:00:12]} 45. Nd2 {[%clk 0:00:05]}  Kd5 {[%clk 0:00:12]} 46. f3 {[%clk 0:00:05]}  Be7 {[%clk 0:00:11]} 47. h5 {[%clk 0:00:04]}  gxh5 {[%clk 0:00:10]} 48. gxh5 {[%clk 0:00:04]}  Ke6 {[%clk 0:00:11]} 49. Kg4 {[%clk 0:00:04]}  h6 {[%clk 0:00:08]} 50. Ne4 {[%clk 0:00:05]}  Bd8 {[%clk 0:00:07]} 51. Ng3 {[%clk 0:00:06]}  Bg5 {[%clk 0:00:07]} 52. Nf5 {[%clk 0:00:06]}  Bf4 {[%clk 0:00:08]} 53. Ng7+ {[%clk 0:00:04]}  Kf6 {[%clk 0:00:08]} 54. Ne8+ {[%clk 0:00:04]}  Kf7 {[%clk 0:00:08]} 55. Nd6+ {[%clk 0:00:04]}  Ke6 {[%clk 0:00:08]} 56. Ne4 {[%clk 0:00:05]}  Be3 {[%clk 0:00:08]} 57. Ng3 {[%clk 0:00:02]}  Bf4 {[%clk 0:00:08]} 58. Ne4 {[%clk 0:00:03]}  Be3 {[%clk 0:00:08]} 59. Ng3 {[%clk 0:00:04]}  Bf4 {[%clk 0:00:09]} 60. Ne4 {[%clk 0:00:04]} 1/2-1/2


[Site "https://www.chess.com"]

[Event "Titled Tuesday Blitz April 4 Early 2023"]
[White "Topalov, Aleksandar"]
[Black "NiklasSchmider"]
[WhiteFideId "925659"]
[WhiteElo "2151"]
[BlackElo "2568"]
[Result "1-0"]
[Round "10"]
[TimeControl "180+2"]
[Date "2023.04.04"]
[WhiteClock "0:01:56"]
[BlackClock "0:01:04"]

1. b3 {[%clk 0:03:00]}  e5 {[%clk 0:02:58]} 2. Bb2 {[%clk 0:03:01]}  Nc6 {[%clk 0:02:57]} 3. c4 {[%clk 0:03:01]}  Nf6 {[%clk 0:02:55]} 4. e3 {[%clk 0:03:01]}  e4 {[%clk 0:02:52]} 5. a3 {[%clk 0:02:59]}  a5 {[%clk 0:02:51]} 6. Qc2 {[%clk 0:02:59]}  Bc5 {[%clk 0:01:49]} 7. Nc3 {[%clk 0:02:59]}  O-O {[%clk 0:01:45]} 8. Nd5 {[%clk 0:02:48]}  Nxd5 {[%clk 0:01:42]} 9. cxd5 {[%clk 0:02:47]}  Ne7 {[%clk 0:01:42]} 10. Qxc5 {[%clk 0:02:47]}  d6 {[%clk 0:01:42]} 11. Qd4 {[%clk 0:02:47]}  Nf5 {[%clk 0:01:42]} 12. Qxe4 {[%clk 0:02:40]}  Re8 {[%clk 0:01:42]} 13. Qf4 {[%clk 0:02:38]}  Ne7 {[%clk 0:01:39]} 14. Qg5 {[%clk 0:02:34]}  Ng6 {[%clk 0:01:33]} 15. Qxd8 {[%clk 0:02:33]}  Rxd8 {[%clk 0:01:34]} 16. Nf3 {[%clk 0:02:27]}  b6 {[%clk 0:01:29]} 17. Rc1 {[%clk 0:02:27]}  Rd7 {[%clk 0:01:24]} 18. Bb5 {[%clk 0:02:21]}  Re7 {[%clk 0:01:24]} 19. O-O {[%clk 0:02:19]}  Rb8 {[%clk 0:01:21]} 20. Rc3 {[%clk 0:02:09]}  Bb7 {[%clk 0:01:18]} 21. Bc6 {[%clk 0:02:04]}  Ba6 {[%clk 0:01:18]} 22. Rfc1 {[%clk 0:02:03]}  f5 {[%clk 0:01:07]} 23. Nd4 {[%clk 0:01:58]}  f4 {[%clk 0:01:07]} 24. Bb5 {[%clk 0:01:57]}  Bxb5 {[%clk 0:01:03]} 25. Nxb5 {[%clk 0:01:56]}  fxe3 {[%clk 0:01:04]} 26. dxe3 {[%clk 0:01:56]} 1-0


[Site "https://www.chess.com"]

[Event "Titled Tuesday Blitz April 4 Early 2023"]
[White "Ashraf, Artin"]
[Black "Rios Escobar, Adan"]
[WhiteFideId "22514805"]
[BlackFideId "3403645"]
[WhiteElo "2188"]
[BlackElo "2426"]
[Result "0-1"]
[Round "10"]
[TimeControl "180+2"]
[Date "2023.04.04"]
[WhiteClock "0:00:03"]
[BlackClock "0:00:05"]

1. e4 {[%clk 0:03:00]}  c5 {[%clk 0:02:56]} 2. Nf3 {[%clk 0:02:58]}  d6 {[%clk 0:02:56]} 3. Bb5+ {[%clk 0:02:51]}  Nd7 {[%clk 0:02:54]} 4. Ba4 {[%clk 0:02:50]}  g6 {[%clk 0:02:43]} 5. O-O {[%clk 0:02:46]}  Bg7 {[%clk 0:02:43]} 6. c4 {[%clk 0:02:44]}  Nf6 {[%clk 0:02:35]} 7. Nc3 {[%clk 0:02:41]}  O-O {[%clk 0:02:35]} 8. d4 {[%clk 0:02:40]}  cxd4 {[%clk 0:02:34]} 9. Nxd4 {[%clk 0:02:40]}  Nb6 {[%clk 0:02:19]} 10. Bb3 {[%clk 0:02:08]}  Bg4 {[%clk 0:02:18]} 11. f3 {[%clk 0:02:07]}  Bd7 {[%clk 0:02:18]} 12. Be3 {[%clk 0:02:06]}  Rc8 {[%clk 0:02:18]} 13. Qe2 {[%clk 0:02:05]}  a6 {[%clk 0:02:02]} 14. Rac1 {[%clk 0:02:04]}  e5 {[%clk 0:01:52]} 15. Nc2 {[%clk 0:02:01]}  Be6 {[%clk 0:01:39]} 16. Nd5 {[%clk 0:01:53]}  Bxd5 {[%clk 0:01:25]} 17. cxd5 {[%clk 0:01:52]}  Nbd7 {[%clk 0:01:25]} 18. a3 {[%clk 0:01:36]}  h5 {[%clk 0:01:19]} 19. Ba2 {[%clk 0:01:30]}  Kh7 {[%clk 0:01:16]} 20. b4 {[%clk 0:01:28]}  Bh6 {[%clk 0:01:00]} 21. Na1 {[%clk 0:01:15]}  Bxe3+ {[%clk 0:00:48]} 22. Qxe3 {[%clk 0:01:14]}  Qb6 {[%clk 0:00:48]} 23. Kf2 {[%clk 0:01:11]}  Qxe3+ {[%clk 0:00:21]} 24. Kxe3 {[%clk 0:01:12]}  Nb6 {[%clk 0:00:21]} 25. Kd3 {[%clk 0:00:57]}  Na4 {[%clk 0:00:17]} 26. Bb3 {[%clk 0:00:43]}  Nb2+ {[%clk 0:00:16]} 27. Kd2 {[%clk 0:00:43]}  b5 {[%clk 0:00:16]} 28. Rc6 {[%clk 0:00:35]}  Rxc6 {[%clk 0:00:11]} 29. dxc6 {[%clk 0:00:36]}  Rc8 {[%clk 0:00:10]} 30. Rc1 {[%clk 0:00:34]}  Kg7 {[%clk 0:00:09]} 31. Rc2 {[%clk 0:00:10]}  Nc4+ {[%clk 0:00:07]} 32. Bxc4 {[%clk 0:00:10]}  bxc4 {[%clk 0:00:08]} 33. Rxc4 {[%clk 0:00:11]}  d5 {[%clk 0:00:08]} 34. exd5 {[%clk 0:00:10]}  Nxd5 {[%clk 0:00:08]} 35. Rc5 {[%clk 0:00:11]}  Nb6 {[%clk 0:00:09]} 36. Nb3 {[%clk 0:00:10]}  Kf6 {[%clk 0:00:07]} 37. Na5 {[%clk 0:00:10]}  Ke6 {[%clk 0:00:08]} 38. Rc3 {[%clk 0:00:08]}  Rc7 {[%clk 0:00:04]} 39. Rd3 {[%clk 0:00:08]}  Nd5 {[%clk 0:00:04]} 40. g3 {[%clk 0:00:08]}  f5 {[%clk 0:00:04]} 41. Kc2 {[%clk 0:00:04]}  e4 {[%clk 0:00:04]} 42. fxe4 {[%clk 0:00:05]}  fxe4 {[%clk 0:00:05]} 43. Rd4 {[%clk 0:00:05]}  Ke5 {[%clk 0:00:06]} 44. Rd2 {[%clk 0:00:06]}  Ne3+ {[%clk 0:00:06]} 45. Kb3 {[%clk 0:00:05]}  Nd5 {[%clk 0:00:05]} 46. Rc2 {[%clk 0:00:05]}  Kd4 {[%clk 0:00:05]} 47. Rc4+ {[%clk 0:00:04]}  Kd3 {[%clk 0:00:05]} 48. Rc5 {[%clk 0:00:05]}  Ne3 {[%clk 0:00:05]} 49. Nb7 {[%clk 0:00:05]}  Nf5 {[%clk 0:00:04]} 50. Nd8 {[%clk 0:00:04]}  Nd4+ {[%clk 0:00:05]} 51. Ka4 {[%clk 0:00:04]}  e3 {[%clk 0:00:05]} 52. Re5 {[%clk 0:00:03]}  e2 {[%clk 0:00:05]} 53. Ka5 {[%clk 0:00:02]}  Rxc6 {[%clk 0:00:05]} 54. a4 {[%clk 0:00:01]}  Rd6 {[%clk 0:00:05]} 55. Nb7 {[%clk 0:00:01]}  Rd5+ {[%clk 0:00:05]} 56. Nc5+ {[%clk 0:00:02]}  Kc4 {[%clk 0:00:03]} 57. Rxd5 {[%clk 0:00:02]}  e1=Q {[%clk 0:00:03]} 58. Rd6 {[%clk 0:00:03]}  Qxb4+ {[%clk 0:00:04]} 59. Kxa6 {[%clk 0:00:02]}  Qxc5 {[%clk 0:00:04]} 60. Rc6 {[%clk 0:00:03]}  Qxc6+ {[%clk 0:00:05]} 0-1


[Site "https://www.chess.com"]

[Event "Titled Tuesday Blitz April 4 Early 2023"]
[White "Molina, Roberto Junio Brito"]
[Black "UNSTOPPABLE_LEGEND"]
[WhiteFideId "2109450"]
[WhiteElo "2376"]
[BlackElo "2507"]
[Result "1/2-1/2"]
[Round "10"]
[TimeControl "180+2"]
[Date "2023.04.04"]
[WhiteClock "0:01:24"]
[BlackClock "0:00:18"]

1. d4 {[%clk 0:03:00]}  Nf6 {[%clk 0:02:59]} 2. Nf3 {[%clk 0:03:00]}  a6 {[%clk 0:02:57]} 3. g3 {[%clk 0:02:55]}  e6 {[%clk 0:02:53]} 4. Bg2 {[%clk 0:02:56]}  Ra7 {[%clk 0:02:45]} 5. O-O {[%clk 0:02:53]}  c6 {[%clk 0:02:46]} 6. c4 {[%clk 0:02:52]}  Bd6 {[%clk 0:02:43]} 7. Nc3 {[%clk 0:02:49]}  b5 {[%clk 0:02:42]} 8. e4 {[%clk 0:02:47]}  Bc7 {[%clk 0:02:41]} 9. e5 {[%clk 0:02:46]}  Ng8 {[%clk 0:02:33]} 10. c5 {[%clk 0:02:45]}  Ne7 {[%clk 0:02:30]} 11. Bg5 {[%clk 0:02:40]}  h6 {[%clk 0:02:29]} 12. Bxe7 {[%clk 0:02:39]}  Qxe7 {[%clk 0:02:27]} 13. b4 {[%clk 0:02:37]}  a5 {[%clk 0:02:24]} 14. a3 {[%clk 0:02:36]}  O-O {[%clk 0:02:22]} 15. Nd2 {[%clk 0:02:32]}  f6 {[%clk 0:02:21]} 16. f4 {[%clk 0:02:31]}  f5 {[%clk 0:02:21]} 17. h4 {[%clk 0:02:28]}  g6 {[%clk 0:02:19]} 18. Nb3 {[%clk 0:02:25]}  a4 {[%clk 0:02:19]} 19. Nd2 {[%clk 0:02:24]}  h5 {[%clk 0:02:19]} 20. Bf3 {[%clk 0:02:24]}  Qh7 {[%clk 0:02:18]} 21. Kf2 {[%clk 0:02:22]}  Bd8 {[%clk 0:02:19]} 22. Rc1 {[%clk 0:02:16]}  Na6 {[%clk 0:02:18]} 23. Rb1 {[%clk 0:02:16]}  Nc7 {[%clk 0:02:18]} 24. Rg1 {[%clk 0:02:14]}  Be7 {[%clk 0:02:18]} 25. Nf1 {[%clk 0:02:15]}  Qf7 {[%clk 0:02:17]} 26. Ne3 {[%clk 0:02:15]}  Kg7 {[%clk 0:02:17]} 27. Ng2 {[%clk 0:02:15]}  Ba6 {[%clk 0:02:05]} 28. Be2 {[%clk 0:02:13]}  Rc8 {[%clk 0:02:03]} 29. Ne1 {[%clk 0:02:12]}  Rb8 {[%clk 0:02:00]} 30. Nf3 {[%clk 0:02:12]}  Ne8 {[%clk 0:01:52]} 31. Rh1 {[%clk 0:02:12]}  Kg8 {[%clk 0:01:48]} 32. Bd3 {[%clk 0:02:12]}  Ng7 {[%clk 0:01:46]} 33. Rb2 {[%clk 0:02:12]}  Ne8 {[%clk 0:01:41]} 34. Bb1 {[%clk 0:02:12]}  Nc7 {[%clk 0:01:41]} 35. Ba2 {[%clk 0:02:12]}  Kg7 {[%clk 0:01:38]} 36. Ne2 {[%clk 0:02:11]}  Nd5 {[%clk 0:01:35]} 37. Bxd5 {[%clk 0:02:10]}  cxd5 {[%clk 0:01:36]} 38. Qd2 {[%clk 0:02:08]}  Bb7 {[%clk 0:01:36]} 39. Rc2 {[%clk 0:02:07]}  Bc6 {[%clk 0:01:37]} 40. Neg1 {[%clk 0:02:06]}  Qf8 {[%clk 0:01:33]} 41. Nh3 {[%clk 0:02:06]}  Qg8 {[%clk 0:01:33]} 42. Nhg5 {[%clk 0:02:06]}  Rf8 {[%clk 0:01:32]} 43. Qe2 {[%clk 0:02:06]}  Qh8 {[%clk 0:01:32]} 44. Ne1 {[%clk 0:02:05]}  Qg8 {[%clk 0:01:32]} 45. Nd3 {[%clk 0:02:05]}  Qh8 {[%clk 0:01:32]} 46. Nf3 {[%clk 0:02:05]}  Qg8 {[%clk 0:01:32]} 47. Nc1 {[%clk 0:02:05]}  Qh8 {[%clk 0:01:33]} 48. Na2 {[%clk 0:02:06]}  Rb8 {[%clk 0:01:32]} 49. Nc3 {[%clk 0:02:07]}  Qc8 {[%clk 0:01:31]} 50. Rhc1 {[%clk 0:02:07]}  Qb7 {[%clk 0:01:31]} 51. Nd1 {[%clk 0:02:08]}  Qc8 {[%clk 0:01:30]} 52. Ke3 {[%clk 0:02:08]}  Qe8 {[%clk 0:01:30]} 53. Qd3 {[%clk 0:02:09]}  Qc8 {[%clk 0:01:28]} 54. Nc3 {[%clk 0:02:09]}  Qa6 {[%clk 0:01:28]} 55. Rg2 {[%clk 0:02:10]}  Rh8 {[%clk 0:01:26]} 56. Rcg1 {[%clk 0:02:10]}  Qc8 {[%clk 0:01:26]} 57. Kd2 {[%clk 0:02:10]}  Rb7 {[%clk 0:01:25]} 58. Kc2 {[%clk 0:02:11]}  Qe8 {[%clk 0:01:25]} 59. Kb2 {[%clk 0:02:11]}  Qf7 {[%clk 0:01:23]} 60. Nd1 {[%clk 0:02:12]}  Kf8 {[%clk 0:01:23]} 61. Nh2 {[%clk 0:02:12]}  Ke8 {[%clk 0:01:23]} 62. Nf2 {[%clk 0:02:13]}  Kd8 {[%clk 0:01:24]} 63. Nh3 {[%clk 0:02:13]}  Kc7 {[%clk 0:01:23]} 64. Ng5 {[%clk 0:02:14]}  Qg8 {[%clk 0:01:21]} 65. Rh1 {[%clk 0:02:13]}  Rb8 {[%clk 0:01:20]} 66. Nf1 {[%clk 0:02:12]}  Rf8 {[%clk 0:01:21]} 67. Ne3 {[%clk 0:02:12]}  Qg7 {[%clk 0:01:20]} 68. Nd1 {[%clk 0:02:13]}  Rb8 {[%clk 0:01:19]} 69. Nf3 {[%clk 0:02:13]}  Rb7 {[%clk 0:01:17]} 70. Nc3 {[%clk 0:02:13]}  Qh6 {[%clk 0:01:16]} 71. Kc2 {[%clk 0:02:13]}  Qf8 {[%clk 0:01:14]} 72. Rb1 {[%clk 0:02:14]}  Qa8 {[%clk 0:01:14]} 73. Rgg1 {[%clk 0:02:14]}  Qd8 {[%clk 0:01:09]} 74. Nxa4 {[%clk 0:02:12]}  bxa4 {[%clk 0:01:07]} 75. b5 {[%clk 0:02:13]}  Qa8 {[%clk 0:01:05]} 76. bxc6 {[%clk 0:02:12]}  dxc6 {[%clk 0:01:06]} 77. Rxb7+ {[%clk 0:02:12]}  Qxb7 {[%clk 0:01:02]} 78. Rb1 {[%clk 0:02:13]}  Qa7 {[%clk 0:01:02]} 79. Rb4 {[%clk 0:02:06]}  Rb8 {[%clk 0:01:01]} 80. Qc3 {[%clk 0:02:04]}  Rxb4 {[%clk 0:00:57]} 81. Qxb4 {[%clk 0:02:05]}  Qa6 {[%clk 0:00:55]} 82. Kd2 {[%clk 0:02:03]}  Bd8 {[%clk 0:00:50]} 83. Ke3 {[%clk 0:01:48]}  Kc8 {[%clk 0:00:48]} 84. Qc3 {[%clk 0:01:43]}  Ba5 {[%clk 0:00:45]} 85. Qd3 {[%clk 0:01:43]}  Qb7 {[%clk 0:00:36]} 86. Nd2 {[%clk 0:01:36]}  Bxd2+ {[%clk 0:00:34]} 87. Kxd2 {[%clk 0:01:36]}  Qb2+ {[%clk 0:00:34]} 88. Ke3 {[%clk 0:01:35]}  Kb7 {[%clk 0:00:32]} 89. Kf3 {[%clk 0:01:32]}  Qc1 {[%clk 0:00:27]} 90. Kg2 {[%clk 0:01:23]}  Qb2+ {[%clk 0:00:23]} 91. Kf3 {[%clk 0:01:23]}  Qb3 {[%clk 0:00:17]} 92. Ke3 {[%clk 0:01:19]}  Qxd3+ {[%clk 0:00:16]} 93. Kxd3 {[%clk 0:01:19]}  Ka6 {[%clk 0:00:17]} 94. Kc3 {[%clk 0:01:20]}  Kb5 {[%clk 0:00:18]} 95. Kd3 {[%clk 0:01:21]}  Ka5 {[%clk 0:00:18]} 96. Kd2 {[%clk 0:01:21]}  Kb5 {[%clk 0:00:17]} 97. Kc3 {[%clk 0:01:22]}  Ka5 {[%clk 0:00:17]} 98. Kd3 {[%clk 0:01:23]}  Kb5 {[%clk 0:00:17]} 99. Kc3 {[%clk 0:01:23]}  Ka5 {[%clk 0:00:18]} 100. Kd3 {[%clk 0:01:24]}  Kb5 {[%clk 0:00:18]} 101. Kc3 {[%clk 0:01:24]} 1/2-1/2


[Site "https://www.chess.com"]

[Event "Titled Tuesday Blitz April 4 Early 2023"]
[White "Yu, Jason"]
[Black "Kaczur, Florian"]
[WhiteFideId "30907624"]
[BlackFideId "705098"]
[WhiteElo "2496"]
[BlackElo "2485"]
[Result "0-1"]
[Round "10"]
[TimeControl "180+2"]
[Date "2023.04.04"]
[WhiteClock "0:00:08"]
[BlackClock "0:00:02"]

1. e4 {[%clk 0:03:00]}  e5 {[%clk 0:02:57]} 2. Nf3 {[%clk 0:03:01]}  Nc6 {[%clk 0:02:56]} 3. Bc4 {[%clk 0:03:01]}  Bc5 {[%clk 0:02:55]} 4. c3 {[%clk 0:03:01]}  Nf6 {[%clk 0:02:53]} 5. d4 {[%clk 0:03:02]}  exd4 {[%clk 0:02:52]} 6. cxd4 {[%clk 0:03:03]}  Bb4+ {[%clk 0:02:52]} 7. Bd2 {[%clk 0:03:03]}  Bxd2+ {[%clk 0:02:51]} 8. Nbxd2 {[%clk 0:03:04]}  d5 {[%clk 0:02:49]} 9. exd5 {[%clk 0:03:05]}  Nxd5 {[%clk 0:02:50]} 10. O-O {[%clk 0:03:05]}  O-O {[%clk 0:02:50]} 11. Rc1 {[%clk 0:03:03]}  Nb6 {[%clk 0:02:46]} 12. Bb3 {[%clk 0:03:03]}  a5 {[%clk 0:02:40]} 13. a4 {[%clk 0:02:53]}  Bg4 {[%clk 0:02:31]} 14. h3 {[%clk 0:02:53]}  Bh5 {[%clk 0:02:30]} 15. Rc5 {[%clk 0:02:51]}  Bg6 {[%clk 0:02:26]} 16. Nc4 {[%clk 0:02:51]}  Nxc4 {[%clk 0:02:23]} 17. Bxc4 {[%clk 0:02:52]}  Qd6 {[%clk 0:02:19]} 18. Re1 {[%clk 0:02:14]}  Rad8 {[%clk 0:02:15]} 19. Qc1 {[%clk 0:02:08]}  Kh8 {[%clk 0:01:41]} 20. Bb5 {[%clk 0:02:04]}  Nxd4 {[%clk 0:01:26]} 21. Nxd4 {[%clk 0:02:05]}  Qxd4 {[%clk 0:01:26]} 22. Rxc7 {[%clk 0:02:06]}  b6 {[%clk 0:01:25]} 23. Ree7 {[%clk 0:01:52]}  h6 {[%clk 0:01:19]} 24. b3 {[%clk 0:01:44]}  Rd6 {[%clk 0:01:16]} 25. Bc4 {[%clk 0:01:41]}  Rf6 {[%clk 0:01:13]} 26. Qe3 {[%clk 0:01:40]}  Qd1+ {[%clk 0:01:05]} 27. Kh2 {[%clk 0:01:39]}  Kh7 {[%clk 0:01:02]} 28. Red7 {[%clk 0:01:15]}  Qb1 {[%clk 0:00:41]} 29. Rd5 {[%clk 0:01:15]}  Qb2 {[%clk 0:00:36]} 30. Rd2 {[%clk 0:01:04]}  Qc1 {[%clk 0:00:33]} 31. Re7 {[%clk 0:01:04]}  Qb1 {[%clk 0:00:27]} 32. Rd5 {[%clk 0:01:00]}  Qc2 {[%clk 0:00:25]} 33. Rd2 {[%clk 0:00:57]}  Qf5 {[%clk 0:00:24]} 34. f3 {[%clk 0:00:40]}  h5 {[%clk 0:00:19]} 35. Rd5 {[%clk 0:00:35]}  Qc2 {[%clk 0:00:14]} 36. Rxh5+ {[%clk 0:00:23]}  Kg8 {[%clk 0:00:14]} 37. Rd5 {[%clk 0:00:23]}  Qb2 {[%clk 0:00:08]} 38. Rd2 {[%clk 0:00:22]}  Qa3 {[%clk 0:00:08]} 39. Red7 {[%clk 0:00:20]}  Qb4 {[%clk 0:00:08]} 40. Qd4 {[%clk 0:00:20]}  Kh7 {[%clk 0:00:06]} 41. Rd6 {[%clk 0:00:21]}  Rxd6 {[%clk 0:00:05]} 42. Qxd6 {[%clk 0:00:22]}  Qc3 {[%clk 0:00:05]} 43. Qd4 {[%clk 0:00:21]}  Qc1 {[%clk 0:00:05]} 44. Rf2 {[%clk 0:00:20]}  Re8 {[%clk 0:00:04]} 45. Qxb6 {[%clk 0:00:20]}  Re1 {[%clk 0:00:04]} 46. f4 {[%clk 0:00:13]}  Rh1+ {[%clk 0:00:03]} 47. Kg3 {[%clk 0:00:14]}  Qc3+ {[%clk 0:00:03]} 48. Rf3 {[%clk 0:00:14]}  Qe1+ {[%clk 0:00:03]} 49. Kg4 {[%clk 0:00:08]}  f5+ {[%clk 0:00:02]} 50. Kg5 {[%clk 0:00:08]}  Qe7+ {[%clk 0:00:02]} 0-1


[Site "https://www.chess.com"]